bitfinex/quotes_BTCUSD_20220101
["timestamp","ask_amount","ask_price","bid_price","bid_amount"]
[1641017175073,0.01341617,47160.0,47153.0,0.37728421]
[1641017175275,0.01341617,47160.0,47153.0,0.35927794]
[1641017175472,0.00018258,47159.0,47153.0,0.35927794]
[1641017175672,0.00018258,47159.0,47153.0,0.35835322]
[1641017175872,0.00016432,47158.0,47153.0,0.35835322]
[1641017176072,0.00016432,47158.0,47153.0,0.37666373]
[1641017176274,0.00014606,47157.0,47153.0,0.35433355]
[1641017176676,0.0001278,47156.0,47153.0,0.35097359]
[1641017176919,0.0001278,47156.0,47154.0,0.09235055]
[1641017177123,0.01341617,47160.0,47155.0,0.339775]
[1641017177524,0.00018258,47159.0,47155.0,0.339775]
[1641017177921,0.00016432,47158.0,47155.0,0.339775]
[1641017178122,0.00016432,47158.0,47157.0,0.00122987]
[1641017178321,0.01341617,47160.0,47157.0,0.34766597]
[1641017178521,0.00480634,47159.0,47158.0,0.00548436]
[1641017178722,0.00498892,47159.0,47158.0,0.339727]
[1641017179021,0.00498892,47159.0,47158.0,0.344727]
[1641017179522,0.00498892,47159.0,47158.0,0.654727]
[1641017180122,0.00498892,47159.0,47158.0,0.66836516]
[1641017180323,0.00498892,47159.0,47158.0,0.35836516]
[1641017181177,0.00498892,47159.0,47158.0,0.67363621]
[1641017181380,0.008609,47161.0,47158.0,0.65499805]
[1641017181574,0.00976082,47165.0,47160.0,1.55777766]
[1641017181774,0.00976082,47165.0,47164.0,1.44100135]
[1641017182174,0.010278,47168.0,47167.0,0.00127693]
[1641017182374,0.010278,47168.0,47167.0,1.68839186]
[1641017182576,0.002,47179.0,47178.0,0.32868876]
[1641017183177,0.002,47179.0,47169.0,0.105992]
[1641017183379,0.002,47179.0,47170.0,0.339727]
[1641017183575,0.0003469,47178.0,47171.0,0.03837843]
[1641017183776,0.0003469,47178.0,47172.0,0.74011696]
[1641017183978,0.00032864,47177.0,47172.0,0.445716]
[1641017184410,0.0048046,47178.0,47172.0,0.445716]
[1641017184411,0.00031038,47176.0,47172.0,0.445716]
[1641017184812,0.00029212,47175.0,47172.0,0.445716]
[1641017185217,0.00027386,47174.0,47172.0,0.35998692]
[1641017185513,0.00025561,47173.0,47172.0,0.35998692]
[1641017186114,0.00025561,47173.0,47172.0,0.38092725]
[1641017186314,0.00025561,47173.0,47172.0,0.36066733]
[1641017186917,0.00025561,47173.0,47172.0,0.41366633]
[1641017187115,0.00025561,47173.0,47172.0,0.43470977]
[1641017187317,0.00025561,47173.0,47172.0,0.41376944]
[1641017188672,0.00025561,47173.0,47172.0,0.70564722]
[1641017188867,0.00025561,47173.0,47172.0,0.72625335]
[1641017189068,0.00025561,47173.0,47172.0,0.70520991]
[1641017189468,0.00025561,47173.0,47172.0,0.71020991]
[1641017189668,0.0050605,47173.0,47172.0,0.71020991]
[1641017189868,0.0050605,47173.0,47172.0,0.65010703]
[1641017190068,0.0050605,47173.0,47172.0,0.66854158]
[1641017190274,0.0050605,47173.0,47172.0,0.65003933]
[1641017190467,0.0050605,47173.0,47172.0,0.35816155]
[1641017191169,0.0050605,47173.0,47172.0,0.37659155]
[1641017191369,0.0050605,47173.0,47172.0,0.358157]
[1641017192233,0.0050605,47173.0,47172.0,0.37914927]
[1641017192434,0.0050605,47173.0,47172.0,0.36071927]
[1641017193233,0.0050605,47173.0,47172.0,0.381543]
[1641017193434,0.0050605,47173.0,47172.0,0.36055073]
[1641017193834,0.0050605,47173.0,47172.0,1.36888229]
[1641017194236,0.0050605,47173.0,47172.0,1.39019668]
[1641017194837,0.0050605,47173.0,47172.0,0.66673496]
[1641017195439,0.0050605,47173.0,47172.0,0.38186512]
[1641017195881,0.0050605,47173.0,47172.0,0.40284976]
[1641017196080,0.0050605,47173.0,47172.0,0.36054936]
[1641017196283,0.0050605,47173.0,47172.0,0.37868866]
[1641017196482,0.0050605,47173.0,47172.0,0.33956472]
[1641017196683,0.0050605,47173.0,47172.0,0.33663013]
[1641017197183,0.0050605,47173.0,47172.0,0.35299287]
[1641017197586,0.0050605,47173.0,47172.0,1.77371851]
[1641017197782,0.0050605,47173.0,47172.0,1.47163291]
[1641017197988,0.00025561,47173.0,47172.0,1.47163291]
[1641017198185,0.002,47179.0,47174.0,1.122]
[1641017198384,0.002,47179.0,47178.0,0.30418324]
[1641017198583,0.002,47179.0,47178.0,0.79256136]
[1641017198785,0.002,47179.0,47178.0,0.70175424]
[1641017199185,0.002,47179.0,47178.0,0.72026889]
[1641017199624,0.35271682,47190.0,47179.0,1.029582]
[1641017199625,0.01808969,47190.0,47179.0,1.029582]
[1641017199826,0.01808969,47190.0,47184.0,0.052986]
[1641017200027,0.01808969,47190.0,47185.0,0.339582]
[1641017201128,0.01808969,47190.0,47184.0,0.052987]
[1641017201328,0.00508969,47190.0,47185.0,0.01887775]
[1641017201630,0.00029212,47189.0,47185.0,0.01887775]
[1641017201826,0.00029212,47189.0,47186.0,0.339582]
[1641017202026,0.00027386,47188.0,47186.0,0.339582]
[1641017202227,0.00027386,47188.0,47185.0,0.01887775]
[1641017202432,0.00025561,47187.0,47186.0,0.052984]
[1641017203274,0.00025561,47187.0,47186.0,0.392566]
[1641017204273,0.00025561,47187.0,47186.0,0.41328173]
[1641017205274,0.00025561,47187.0,47186.0,0.43445556]
[1641017206076,0.00025561,47187.0,47186.0,0.392566]
[1641017206477,0.00025561,47187.0,47186.0,0.41343102]
[1641017206777,0.00025561,47187.0,47186.0,0.36044702]
[1641017207413,0.00025561,47187.0,47186.0,0.38192654]
[1641017208417,0.00025561,47187.0,47186.0,0.40177734]
[1641017208716,0.00025561,47187.0,47186.0,0.3594328]
[1641017209415,0.00025561,47187.0,47186.0,0.37743391]
[1641017209615,0.00025561,47187.0,47186.0,0.35758311]
[1641017210417,0.00025561,47187.0,47186.0,0.37712429]
[1641017210679,0.00025561,47187.0,47186.0,0.35912318]
[1641017211288,0.00025561,47187.0,47186.0,0.37838406]
[1641017211480,0.00025561,47187.0,47186.0,0.35884288]
[1641017212379,0.00025561,47187.0,47186.0,0.38023363]
[1641017212580,0.00025561,47187.0,47186.0,0.36097275]
[1641017213179,0.00025561,47187.0,47186.0,0.41395675]
[1641017213981,0.00025561,47187.0,47186.0,0.43265539]
[1641017214815,0.00025561,47187.0,47186.0,0.392566]
[1641017215016,0.00505899,47187.0,47186.0,0.392566]
[1641017215218,0.00505899,47187.0,47186.0,0.41212835]
[1641017215617,0.00505899,47187.0,47186.0,0.41217638]
[1641017216418,0.00505899,47187.0,47186.0,0.43133175]
[1641017216617,0.00505899,47187.0,47186.0,0.41172137]
[1641017217422,0.00505899,47187.0,47186.0,0.43309738]
[1641017217620,0.00505899,47187.0,47186.0,0.41100742]
[1641017218023,0.00505899,47187.0,47186.0,0.35802342]
[1641017218271,0.00505899,47187.0,47186.0,0.35519618]
[1641017218469,0.00505899,47187.0,47186.0,0.37418521]
[1641017218674,0.00505899,47187.0,47186.0,0.34956894]
[1641017219470,0.00505899,47187.0,47186.0,0.37063481]
[1641017219671,0.00505899,47187.0,47186.0,0.35164578]
[1641017220376,0.00505899,47187.0,47186.0,0.37024831]
[1641017220569,0.00505899,47187.0,47186.0,0.34918244]
[1641017221372,0.00505899,47187.0,47186.0,0.36917996]
[1641017221672,0.00505899,47187.0,47186.0,0.35057743]
[1641017222630,0.00505899,47187.0,47186.0,0.35205706]
[1641017223232,0.00320298,47193.0,47187.0,0.32]
[1641017223433,0.00320298,47193.0,47188.0,0.339491]
[1641017223632,9.129e-05,47192.0,47186.0,0.02147715]
[1641017224032,7.303e-05,47191.0,47186.0,0.04196436]
[1641017224232,7.303e-05,47191.0,47186.0,0.02048721]
[1641017224732,7.303e-05,47191.0,47186.0,0.29997591]
[1641017225532,7.303e-05,47191.0,47183.0,0.05894039]
[1641017225776,7.303e-05,47191.0,47184.0,0.339491]
[1641017225981,7.303e-05,47191.0,47185.0,0.02103101]
[1641017226178,0.32657225,47186.0,47185.0,0.02103101]
[1641017226381,0.42657225,47186.0,47185.0,0.02103101]
[1641017226576,0.58760425,47186.0,47185.0,0.02103101]
[1641017226776,0.58760425,47186.0,47184.0,0.01840172]
[1641017226976,1.161032,47185.0,47184.0,0.01840172]
[1641017227176,1.261032,47185.0,47184.0,0.01840172]
[1641017227576,1.261032,47185.0,47173.0,0.43620046]
[1641017227778,1.2,47185.0,47173.0,0.43620046]
[1641017227980,1.6080986,47185.0,47174.0,0.00023736]
[1641017228177,0.061032,47184.0,47174.0,0.00023736]
[1641017228378,0.153007,47185.0,47174.0,0.00023736]
[1641017228577,0.3550926,47185.0,47174.0,0.00023736]
[1641017228983,0.4550926,47185.0,47174.0,0.00023736]
[1641017229180,0.4550926,47185.0,47171.0,0.00029213]
[1641017229428,0.053007,47179.0,47171.0,0.00029213]
[1641017229628,0.28857965,47178.0,47171.0,0.00029213]
[1641017229828,0.33857965,47178.0,47171.0,0.00029213]
[1641017230029,0.43857965,47178.0,47171.0,0.00029213]
[1641017230233,0.48857965,47178.0,47171.0,0.00029213]
[1641017230632,0.053007,47176.0,47171.0,0.00029213]
[1641017230832,0.27418095,47175.0,47171.0,0.00029213]
[1641017231033,0.31234584,47179.0,47171.0,0.00029213]
[1641017231232,0.33799449,47182.0,47171.0,0.00029213]
[1641017231636,0.24045642,47180.0,47171.0,0.00029213]
[1641017231834,0.30003543,47179.0,47171.0,0.00029213]
[1641017232033,0.053005,47178.0,47171.0,0.00029213]
[1641017234282,0.29345942,47180.0,47171.0,0.00029213]
[1641017234779,0.053003,47180.0,47171.0,0.00029213]
[1641017235680,0.053003,47180.0,47172.0,0.339491]
[1641017236079,0.206008,47183.0,47170.0,0.43197214]
[1641017236080,0.1,47183.0,47173.0,0.00025561]
[1641017236281,0.52026555,47184.0,47173.0,0.00025561]
[1641017236491,0.52026555,47184.0,47172.0,0.01895552]
[1641017236935,0.52026555,47184.0,47173.0,0.00025561]
[1641017237133,0.053005,47179.0,47173.0,0.00025561]
[1641017238233,0.053005,47179.0,47171.0,0.00029213]
[1641017238634,0.053001,47182.0,47172.0,0.33655641]
[1641017238835,0.103001,47182.0,47171.0,0.00029213]
[1641017239034,0.05,47182.0,47173.0,0.00025561]
[1641017239234,0.05,47182.0,47171.0,0.05329213]
[1641017239439,0.32026555,47184.0,47172.0,0.00027387]
[1641017239636,0.053003,47180.0,47172.0,5.47e-06]
[1641017240036,0.00012233,47179.0,47172.0,5.47e-06]
[1641017240439,0.00010408,47178.0,47172.0,5.47e-06]
[1641017240674,0.00010408,47178.0,47173.0,0.339578]
[1641017240871,8.582e-05,47177.0,47173.0,0.339578]
[1641017241270,6.756e-05,47176.0,47173.0,0.339578]
[1641017241468,6.756e-05,47176.0,47173.0,0.36055081]
[1641017241671,0.00012233,47179.0,47173.0,0.36055081]
[1641017242071,0.00010408,47178.0,47173.0,0.36055081]
[1641017242369,8.582e-05,47177.0,47173.0,0.36055081]
[1641017242569,8.582e-05,47177.0,47173.0,0.38030709]
[1641017242772,0.053003,47180.0,47173.0,0.35933428]
[1641017242773,6.756e-05,47176.0,47173.0,0.35933428]
[1641017243170,0.00012233,47179.0,47173.0,0.35933428]
[1641017243373,0.00012233,47179.0,47173.0,0.01975628]
[1641017243571,0.00010408,47178.0,47173.0,0.04027148]
[1641017243771,0.00010408,47178.0,47173.0,0.0205152]
[1641017243972,8.582e-05,47177.0,47173.0,0.0205152]
[1641017244172,8.582e-05,47177.0,47174.0,0.339578]
[1641017244417,6.756e-05,47176.0,47174.0,0.339578]
[1641017244818,0.00012233,47179.0,47174.0,0.339578]
[1641017245018,0.00012233,47179.0,47173.0,0.0205152]
[1641017245219,0.00010408,47178.0,47173.0,0.0205152]
[1641017245421,0.00010408,47178.0,47172.0,5.47e-06]
[1641017245623,8.582e-05,47177.0,47173.0,0.339578]
[1641017246021,6.756e-05,47176.0,47173.0,0.339578]
[1641017246221,6.756e-05,47176.0,47174.0,0.02165618]
[1641017246421,0.00010408,47178.0,47175.0,0.339578]
[1641017246622,0.00010408,47178.0,47174.0,0.02165618]
[1641017246821,8.582e-05,47177.0,47173.0,0.01996284]
[1641017247022,8.582e-05,47177.0,47174.0,0.339578]
[1641017247226,6.756e-05,47176.0,47173.0,0.01996284]
[1641017247425,6.756e-05,47176.0,47174.0,0.339578]
[1641017247625,0.00010408,47178.0,47174.0,0.339578]
[1641017247825,0.00010408,47178.0,47172.0,5.47e-06]
[1641017248025,8.582e-05,47177.0,47173.0,0.339578]
[1641017248466,6.756e-05,47176.0,47173.0,0.339578]
[1641017248866,0.00010408,47178.0,47173.0,0.339578]
[1641017249265,8.582e-05,47177.0,47173.0,0.339578]
[1641017249669,0.00861,47179.0,47173.0,0.01929565]
[1641017249670,6.756e-05,47176.0,47173.0,0.01929565]
[1641017250069,0.05310808,47178.0,47173.0,0.01929565]
[1641017250471,8.582e-05,47177.0,47173.0,0.01929565]
[1641017250769,6.756e-05,47176.0,47173.0,0.01929565]
[1641017251270,8.582e-05,47177.0,47172.0,5.47e-06]
[1641017251469,8.582e-05,47177.0,47173.0,0.339578]
[1641017251670,6.756e-05,47176.0,47172.0,5.47e-06]
[1641017251926,6.756e-05,47176.0,47173.0,0.339578]
[1641017252128,8.582e-05,47177.0,47173.0,0.339578]
[1641017252326,0.05309082,47177.0,47172.0,5.47e-06]
[1641017252527,6.756e-05,47176.0,47172.0,5.47e-06]
[1641017252724,6.756e-05,47176.0,47173.0,0.36100131]
[1641017252927,8.582e-05,47177.0,47173.0,0.36100131]
[1641017253426,6.756e-05,47176.0,47173.0,0.36100131]
[1641017253626,6.756e-05,47176.0,47173.0,0.38076457]
[1641017253826,0.00010408,47178.0,47173.0,0.35934126]
[1641017254026,0.05310708,47178.0,47173.0,0.35934126]
[1641017254326,8.582e-05,47177.0,47173.0,0.35934126]
[1641017254727,6.756e-05,47176.0,47173.0,0.04028055]
[1641017254928,0.05307356,47176.0,47173.0,0.02051729]
[1641017255132,1.16522459,47174.0,47173.0,0.02051729]
[1641017255328,1.56731018,47174.0,47173.0,0.02051729]
[1641017255529,1.46522458,47174.0,47173.0,0.02051729]
[1641017255783,1.61022458,47174.0,47173.0,0.02051729]
[1641017255984,1.61022458,47174.0,47172.0,5.47e-06]
[1641017255985,0.34779559,47173.0,47172.0,5.47e-06]
[1641017256182,0.51174859,47173.0,47172.0,5.47e-06]
[1641017256384,0.56174859,47173.0,47169.0,6.024e-05]
[1641017256588,0.063953,47172.0,47169.0,6.024e-05]
[1641017256985,0.31782374,47171.0,47169.0,6.024e-05]
[1641017257189,0.843953,47170.0,47169.0,6.024e-05]
[1641017257387,1.2568394,47170.0,47169.0,6.024e-05]
[1641017257586,1.3568394,47170.0,47169.0,6.024e-05]
[1641017258088,0.5768394,47170.0,47169.0,6.024e-05]
[1641017259290,0.263953,47170.0,47169.0,6.024e-05]
[1641017259527,0.00127159,47174.0,47169.0,6.024e-05]
[1641017259727,0.00861,47179.0,47168.0,0.00865563]
[1641017259929,7.303e-05,47173.0,47168.0,0.00865563]
[1641017260129,0.00010954,47175.0,47169.0,0.339578]
[1641017260329,0.00016432,47178.0,47170.0,0.30817213]
[1641017260532,9.128e-05,47174.0,47171.0,0.6191695]
[1641017260728,0.00014606,47177.0,47172.0,0.00128836]
[1641017260930,0.00861,47179.0,47173.0,0.339578]
[1641017261331,0.00016432,47178.0,47173.0,0.339578]
[1641017261527,0.00016432,47178.0,47174.0,0.29169559]
[1641017261729,0.00014606,47177.0,47175.0,0.339578]
[1641017262129,0.0001278,47176.0,47175.0,0.339578]
[1641017263394,0.0001278,47176.0,47175.0,0.3600976]
[1641017263692,0.0001278,47176.0,47175.0,0.38034867]
[1641017263894,0.0001278,47176.0,47175.0,0.35982907]
[1641017264694,0.0001278,47176.0,47175.0,0.3800654]
[1641017265095,0.0001278,47176.0,47175.0,0.35981433]
[1641017265700,0.0001278,47176.0,47175.0,0.37947667]
[1641017265895,0.0001278,47176.0,47175.0,0.35924034]
[1641017267436,0.0001278,47176.0,47175.0,0.37741315]
[1641017267635,0.0001278,47176.0,47175.0,0.46376781]
[1641017267836,0.0001278,47176.0,47175.0,0.48343325]
[1641017268136,0.0001278,47176.0,47175.0,0.46526044]
[1641017268737,0.0001278,47176.0,47175.0,0.48486762]
[1641017268936,0.0001278,47176.0,47175.0,0.46520218]
[1641017269838,0.0001278,47176.0,47175.0,0.77009544]
[1641017270038,0.0001278,47176.0,47175.0,0.75048826]
[1641017270876,0.0001278,47176.0,47175.0,0.7708376]
[1641017271073,0.0001278,47176.0,47175.0,0.75261363]
[1641017271483,0.03840851,47197.0,47181.0,0.052993]
[1641017271675,0.00293459,47193.0,47182.0,0.339578]
[1641017271877,0.00293459,47193.0,47183.0,0.29153726]
[1641017272076,0.00293459,47193.0,47184.0,0.339578]
[1641017272277,0.01154459,47193.0,47184.0,0.339578]
[1641017272479,0.01154459,47193.0,47185.0,0.321155]
[1641017272677,0.01154459,47193.0,47189.0,0.052993]
[1641017272877,0.01154459,47193.0,47190.0,0.339578]
[1641017273077,0.01154459,47193.0,47186.0,0.105987]
[1641017273279,0.01154459,47193.0,47187.0,0.339578]
[1641017274818,0.01154459,47193.0,47187.0,0.36095102]
[1641017275016,0.01154459,47193.0,47189.0,0.052993]
[1641017275217,0.01154459,47193.0,47190.0,0.339578]
[1641017276019,0.01154459,47193.0,47190.0,0.35941946]
[1641017276818,0.07607293,47198.0,47196.0,0.28595176]
[1641017277020,0.05,47198.0,47196.0,0.28595176]
[1641017277217,0.00861,47198.0,47196.0,0.28595176]
[1641017279280,0.00812908,47198.0,47196.0,0.28595176]
[1641017280882,0.00812908,47198.0,47196.0,0.28502704]
[1641017281482,0.00812908,47198.0,47197.0,0.339578]
[1641017281934,0.00853075,47198.0,47197.0,0.339578]
[1641017282934,0.00853075,47198.0,47197.0,0.35758387]
[1641017284637,0.00853075,47198.0,47197.0,0.37916844]
[1641017284836,0.00853075,47198.0,47197.0,0.36116257]
[1641017285035,0.00853075,47198.0,47197.0,0.38209444]
[1641017285236,0.00853075,47198.0,47197.0,0.36050987]
[1641017285712,0.00853075,47198.0,47197.0,0.02093187]
[1641017285900,0.00853075,47198.0,47197.0,0.03976104]
[1641017286099,0.00853075,47198.0,47197.0,0.01882917]
[1641017287103,0.00853075,47198.0,47196.0,0.30652152]
[1641017287503,0.00038342,47197.0,47196.0,0.30652152]
[1641017288103,0.00038342,47197.0,47196.0,0.32462141]
[1641017288303,0.00038342,47197.0,47196.0,0.30312693]
[1641017289003,0.00038342,47197.0,47196.0,0.32424445]
[1641017289206,0.00038342,47197.0,47196.0,0.30614456]
[1641017289843,0.00038342,47197.0,47196.0,0.02111752]
[1641017290043,0.00038342,47197.0,47196.0,0.04156192]
[1641017290243,0.00038342,47197.0,47196.0,0.0204444]
[1641017291142,0.00038342,47197.0,47195.0,0.052991]
[1641017291543,0.00036516,47196.0,47195.0,0.052991]
[1641017292748,0.00036516,47196.0,47193.0,0.02126586]
[1641017293171,0.0003469,47195.0,47193.0,0.04079007]
[1641017293370,0.0003469,47195.0,47193.0,0.01952421]
[1641017293371,1.02736591,47194.0,47193.0,0.01952421]
[1641017293570,0.72284345,47194.0,47193.0,0.01952421]
[1641017293768,0.77284345,47194.0,47193.0,0.01952421]
[1641017294168,0.59164755,47194.0,47193.0,0.01952421]
[1641017294371,0.59164755,47194.0,47185.0,0.053001]
[1641017294569,0.52769455,47194.0,47187.0,0.00969237]
[1641017294770,0.52647749,47194.0,47187.0,0.00969237]
[1641017295070,0.52647749,47194.0,47188.0,9.129e-05]
[1641017295268,0.063953,47193.0,47188.0,9.129e-05]
[1641017295469,0.063873,47193.0,47188.0,9.129e-05]
[1641017296169,0.05,47194.0,47188.0,9.129e-05]
[1641017296369,0.04993,47194.0,47188.0,9.129e-05]
[1641017296570,0.05123686,47195.0,47184.0,0.00016432]
[1641017297033,0.36991101,47191.0,47184.0,0.00016432]
[1641017297232,0.36991101,47191.0,47182.0,0.00020083]
[1641017297432,0.51991101,47191.0,47185.0,0.00014606]
[1641017297632,0.51991101,47191.0,47182.0,0.00020083]
[1641017298033,0.51991101,47191.0,47181.0,0.02180958]
[1641017298034,0.51991101,47191.0,47181.0,0.02102041]
[1641017298336,0.00014606,47190.0,47184.0,0.053003]
[1641017298534,0.00014606,47190.0,47180.0,0.0046]
[1641017298732,0.0001278,47189.0,47179.0,0.02091545]
[1641017299131,0.00120271,47190.0,47180.0,0.01921585]
[1641017299132,0.053013,47186.0,47180.0,0.01921585]
[1641017299834,0.0001278,47189.0,47180.0,0.01921585]
[1641017300234,0.0001278,47189.0,47175.0,0.053013]
[1641017300235,0.06399654,47188.0,47178.0,0.02110529]
[1641017300431,0.00010954,47188.0,47178.0,0.02102529]
[1641017300698,9.129e-05,47187.0,47178.0,0.02102529]
[1641017300890,0.05310429,47187.0,47178.0,0.02102529]
[1641017301090,7.303e-05,47186.0,47178.0,0.02102529]
[1641017301289,7.303e-05,47186.0,47175.0,0.053013]
[1641017301689,7.303e-05,47186.0,47176.0,0.00010955]
[1641017301890,7.303e-05,47186.0,47175.0,0.05018796]
[1641017302089,0.00016432,47185.0,47175.0,0.05018796]
[1641017302491,0.51991101,47191.0,47182.0,3.10251493]
[1641017302492,0.00014606,47184.0,47182.0,3.10251493]
[1641017302690,0.00014606,47184.0,47183.0,0.339488]
[1641017302889,0.0047,47195.0,47183.0,0.339488]
[1641017303090,0.00812908,47198.0,47182.0,3.10251493]
[1641017303292,0.00025561,47190.0,47183.0,0.28446881]
[1641017303590,0.00023735,47189.0,47187.0,0.27650847]
[1641017303791,0.00023735,47189.0,47188.0,0.339488]
[1641017303992,0.45776043,47198.0,47188.0,0.39248]
[1641017304192,0.45776043,47198.0,47193.0,0.25548635]
[1641017304420,0.00038342,47197.0,47193.0,0.25548635]
[1641017304825,0.00036516,47196.0,47193.0,0.25548635]
[1641017305223,0.0003469,47195.0,47194.0,0.05299]
[1641017308288,0.0003469,47195.0,47194.0,0.392478]
[1641017308689,0.0003469,47195.0,47194.0,0.67163178]
[1641017309288,0.0003469,47195.0,47194.0,0.41314611]
[1641017310891,0.0003469,47195.0,47194.0,0.0945278]
[1641017311188,0.0003469,47195.0,47194.0,0.41334769]
[1641017311390,0.0003469,47195.0,47194.0,0.43321947]
[1641017311592,0.0003469,47195.0,47194.0,0.41234978]
[1641017312234,0.0003469,47195.0,47194.0,0.43045647]
[1641017312435,0.0003469,47195.0,47194.0,0.41058469]
[1641017313236,0.0003469,47195.0,47194.0,0.43131405]
[1641017313738,0.0003469,47195.0,47194.0,0.392478]
[1641017314240,0.0003469,47195.0,47194.0,0.41294289]
[1641017315240,0.0003469,47195.0,47194.0,0.43231631]
[1641017315437,0.0003469,47195.0,47194.0,0.41185142]
[1641017316294,0.0003469,47195.0,47194.0,0.43205242]
[1641017316495,0.0003469,47195.0,47194.0,0.412679]
[1641017317292,0.0003469,47195.0,47194.0,0.43391561]
[1641017317492,0.0003469,47195.0,47194.0,0.41371461]
[1641017318293,0.0003469,47195.0,47194.0,0.43174192]
[1641017318491,0.0003469,47195.0,47194.0,0.41050531]
[1641017319425,0.0003469,47195.0,47194.0,0.42918908]
[1641017319625,0.0003469,47195.0,47194.0,0.41116177]
[1641017320225,0.0003469,47195.0,47194.0,0.43288954]
[1641017320429,0.0003469,47195.0,47194.0,0.41420577]
[1641017321227,0.0003469,47195.0,47194.0,0.42841969]
[1641017321428,0.0003469,47195.0,47194.0,0.40669192]
[1641017322325,0.0003469,47195.0,47194.0,0.42495842]
[1641017322526,0.0003469,47195.0,47194.0,0.4057445]
[1641017322929,0.0003469,47195.0,47194.0,0.40481978]
[1641017323383,0.0003469,47195.0,47194.0,0.42366299]
[1641017323582,0.0003469,47195.0,47194.0,0.40539649]
[1641017324982,0.0003469,47195.0,47194.0,0.42484887]
[1641017325184,0.0003469,47195.0,47194.0,0.40600566]
[1641017325384,0.0003469,47195.0,47194.0,0.42788262]
[1641017325587,0.0003469,47195.0,47194.0,0.40843024]
[1641017326387,0.0003469,47195.0,47194.0,0.43005764]
[1641017327030,0.0003469,47195.0,47194.0,0.38655328]
[1641017327431,0.0003469,47195.0,47194.0,0.40833261]
[1641017328437,0.0003469,47195.0,47194.0,0.42779351]
[1641017328632,0.0003469,47195.0,47194.0,0.40601418]
[1641017329334,0.0003469,47195.0,47194.0,0.42466994]
[1641017329535,0.0003469,47195.0,47194.0,0.40520904]
[1641017330338,0.0003469,47195.0,47194.0,0.4246394]
[1641017330538,0.0003469,47195.0,47194.0,0.40598364]
[1641017331375,0.0003469,47195.0,47194.0,0.42509774]
[1641017331575,0.0003469,47195.0,47194.0,0.40566738]
[1641017332374,0.0003469,47195.0,47194.0,0.42373752]
[1641017332576,0.0003469,47195.0,47194.0,0.40462342]
[1641017333378,0.0003469,47195.0,47194.0,0.4244959]
[1641017333778,0.0003469,47195.0,47194.0,0.40642576]
[1641017334423,0.0003469,47195.0,47194.0,0.42657787]
[1641017335223,0.0003469,47195.0,47194.0,0.38655328]
[1641017335423,0.0003469,47195.0,47194.0,0.40706357]
[1641017335627,0.00812908,47198.0,47194.0,0.40706357]
[1641017336028,0.00038342,47197.0,47194.0,0.40706357]
[1641017336423,0.00036516,47196.0,47194.0,0.42884043]
[1641017336626,0.00036516,47196.0,47194.0,0.40833014]
[1641017336824,0.0003469,47195.0,47194.0,0.40833014]
[1641017338024,0.0003469,47195.0,47194.0,0.4302653]
[1641017338285,0.0003469,47195.0,47194.0,0.40848844]
[1641017338488,0.00092472,47201.0,47194.0,0.40848844]
[1641017338489,0.00549397,47202.0,47195.0,1.20045707]
[1641017338788,0.01098794,47202.0,47201.0,1.15417055]
[1641017338987,0.01098794,47202.0,47201.0,1.50026052]
[1641017339183,0.01111574,47202.0,47201.0,1.50026052]
[1641017339384,0.01111574,47202.0,47201.0,0.64954071]
[1641017339782,0.01111574,47202.0,47201.0,0.70454071]
[1641017340386,0.01111574,47202.0,47201.0,0.73020214]
[1641017340587,0.002,47209.0,47203.0,0.00861]
[1641017340785,0.002,47209.0,47208.0,1.15923016]
[1641017340985,0.002,47209.0,47208.0,1.91182624]
[1641017341393,0.002,47219.0,47211.0,1.439488]
[1641017341585,0.002,47219.0,47216.0,0.24761389]
[1641017341787,0.002,47219.0,47217.0,0.371258]
[1641017342043,0.002,47219.0,47217.0,0.392438]
[1641017342641,0.002,47219.0,47217.0,0.4116822]
[1641017343542,0.002,47219.0,47217.0,0.43140476]
[1641017343742,0.40234265,47231.0,47227.0,0.2786729]
[1641017343946,0.063887,47230.0,47228.0,0.052951]
[1641017344141,0.03277742,47234.0,47228.0,0.052951]
[1641017344542,0.000566,47233.0,47228.0,0.052951]
[1641017344942,0.00054774,47232.0,47228.0,0.052951]
[1641017345143,0.41409053,47231.0,47228.0,0.052951]
[1641017345343,0.063887,47230.0,47228.0,0.052951]
[1641017345542,0.06439822,47230.0,47228.0,0.052951]
[1641017345775,0.00049297,47229.0,47228.0,0.052951]
[1641017346378,0.00049297,47229.0,47227.0,0.01896254]
[1641017346582,0.113887,47228.0,47227.0,0.01896254]
[1641017346777,0.113887,47228.0,47219.0,0.02187466]
[1641017346778,0.11436171,47228.0,47219.0,0.02187466]
[1641017346976,0.10047471,47228.0,47219.0,0.02187466]
[1641017347176,0.00045645,47227.0,47219.0,0.02187466]
[1641017347576,0.42198227,47220.0,47219.0,0.02187466]
[1641017347778,0.41698227,47220.0,47216.0,0.02055427]
[1641017347977,0.41731092,47220.0,47218.0,0.052964]
[1641017348177,0.00031039,47219.0,47218.0,0.052964]
[1641017348578,0.00031039,47219.0,47218.0,0.392452]
[1641017349635,0.00031039,47219.0,47218.0,0.68677213]
[1641017350137,0.39233459,47233.0,47227.0,0.26191845]
[1641017350536,0.00021909,47231.0,47227.0,0.26191845]
[1641017350937,0.00020083,47230.0,47227.0,0.26191845]
[1641017351338,0.00018258,47229.0,47227.0,0.26191845]
[1641017351747,0.00016432,47228.0,47227.0,0.26191845]
[1641017351939,0.00016432,47228.0,47227.0,0.31487145]
[1641017353190,0.00016432,47228.0,47227.0,0.65435945]
[1641017353586,0.00016432,47228.0,47227.0,0.673617]
[1641017354188,0.00877432,47228.0,47227.0,0.96145851]
[1641017354390,0.00182233,47238.0,47228.0,1.039488]
[1641017354687,0.00016432,47237.0,47235.0,0.30479801]
[1641017355086,0.00014606,47236.0,47235.0,0.30479801]
[1641017355487,0.00014606,47236.0,47235.0,0.32351083]
[1641017355686,0.00014606,47236.0,47235.0,0.37645683]
[1641017356088,0.00014606,47236.0,47235.0,0.32351083]
[1641017356589,0.00014606,47236.0,47235.0,0.03904595]
[1641017356790,0.06403306,47236.0,47235.0,0.03904595]
[1641017357237,0.00014606,47236.0,47235.0,0.03904595]
[1641017357440,0.00014606,47236.0,47232.0,0.29892668]
[1641017357441,0.00875606,47236.0,47232.0,0.29892668]
[1641017357640,0.00875606,47236.0,47235.0,1.439488]
[1641017357839,0.01043233,47238.0,47236.0,1.10635448]
[1641017358038,0.0105,47247.0,47238.0,1.19886624]
[1641017358240,0.0116862,47249.0,47239.0,1.19348991]
[1641017358439,0.0105,47247.0,47246.0,0.00127954]
[1641017358637,0.0105,47247.0,47246.0,1.88613092]
[1641017358838,0.0105,47247.0,47246.0,0.77923996]
[1641017359039,0.0105,47247.0,47246.0,0.83215696]
[1641017359742,0.0105,47247.0,47246.0,0.85204835]
[1641017359941,0.0105,47247.0,47246.0,0.83215696]
[1641017360142,0.0105,47247.0,47246.0,0.80372696]
[1641017360341,0.0116862,47249.0,47247.0,1.03]
[1641017360342,0.002,47249.0,47247.0,1.03]